fUSD/lending_fUSD_20250110
["ID","MTS","AMOUNT","RATE_DAILY","PERIOD"]
[348410038,1736519435321,-500.0,9.779e-05,2]
[348410039,1736519435331,-500.0,9.779e-05,2]
[348410040,1736519435341,-500.0,9.779e-05,2]
[348410041,1736519435350,-749.01,9.779e-05,2]
[348410042,1736519435360,-500.0,9.779e-05,2]
[348410043,1736519435370,-545.71,9.779e-05,2]
[348410044,1736519435380,-500.0,9.779e-05,2]
[348410045,1736519435390,-1615.33,9.779e-05,2]
[348410046,1736519435400,-500.0,9.779e-05,2]
[348410047,1736519435410,-500.0,9.796e-05,2]
[348410048,1736519435419,-500.0,9.796e-05,2]
[348410049,1736519435429,-576.47145862,9.796e-05,2]
[348410050,1736519435438,-500.0,9.796e-05,2]
[348410051,1736519435448,-500.0,9.796e-05,2]
[348410052,1736519435458,-546.56901685,9.796e-05,2]
[348410053,1736519435468,-500.0,9.796e-05,2]
[348410054,1736519435478,-500.0,9.796e-05,2]
[348410055,1736519435488,-500.0,9.796e-05,2]
[348410056,1736519435499,-500.0,9.796e-05,2]
[348410057,1736519435508,-500.0,9.796e-05,2]
[348410058,1736519435518,-592.62331865,9.796e-05,2]
[348410059,1736519435529,-500.0,9.796e-05,2]
[348410060,1736519435538,-500.0,9.796e-05,2]
[348410061,1736519435554,-500.0,9.796e-05,2]
[348410062,1736519435563,-500.0,9.796e-05,2]
[348410063,1736519435573,-500.0,9.796e-05,2]
[348410064,1736519435583,-500.0,9.796e-05,2]
[348410065,1736519435592,-500.0,9.796e-05,2]
[348410066,1736519435602,-500.0,9.796e-05,2]
[348410067,1736519435611,-160.23358002,9.796e-05,2]
[348410068,1736519435621,-500.0,9.796e-05,2]
[348410069,1736519435631,-174.99972032,9.796e-05,2]
[348410070,1736519435641,-500.0,9.796e-05,2]
[348410071,1736519435868,-500.0,9.796e-05,2]
[348410072,1736519435879,-500.0,9.796e-05,2]
[348410073,1736519435889,-500.0,9.796e-05,2]
[348410074,1736519435900,-500.0,9.796e-05,2]
[348410075,1736519435909,-505.78953041,9.796e-05,2]
[348410076,1736519435920,-500.0,9.796e-05,2]
[348410077,1736519435929,-364.33760799,9.796e-05,2]
[348410078,1736519435938,-500.0,9.796e-05,2]
[348410079,1736519435948,-500.0,9.796e-05,2]
[348410080,1736519435957,-500.0,9.796e-05,2]
[348410081,1736519435967,-508.64144669,9.796e-05,2]
[348410082,1736519435978,-500.0,9.796e-05,2]
[348410083,1736519435988,-500.0,9.796e-05,2]
[348410084,1736519435998,-500.0,9.796e-05,2]
[348410085,1736519436007,-500.0,9.796e-05,2]
[348410086,1736519436017,-494.35946946,9.796e-05,2]
[348410087,1736519436026,-242.14448323,9.796e-05,2]
[348410088,1736519436035,-169.37553502,9.796e-05,2]
[348410089,1736519436050,-324.83,9.796e-05,2]
[348410090,1736519436060,-336.2301917,9.796e-05,2]
[348410091,1736519436070,-500.0,9.796e-05,2]
[348410092,1736519436080,-500.0,9.796e-05,2]
[348410093,1736519436090,-500.0,9.796e-05,2]
[348410094,1736519436103,-431.15598709,9.796e-05,2]
[348410095,1736519436114,-500.0,9.796e-05,2]
[348410096,1736519436124,-500.0,9.796e-05,2]
[348410097,1736519436133,-500.0,9.796e-05,2]
[348410098,1736519436145,-500.0,9.796e-05,2]
[348410099,1736519436155,-500.0,9.796e-05,2]
[348410100,1736519436165,-650.28,9.796e-05,2]
[348410101,1736519436175,-500.0,9.796e-05,2]
[348410102,1736519436185,-500.0,9.796e-05,2]
[348410103,1736519436195,-500.0,9.796e-05,2]
[348410104,1736519436205,-512.00535454,9.796e-05,2]
[348410105,1736519436214,-500.0,9.796e-05,2]
[348410106,1736519436224,-505.80929571,9.796e-05,2]
[348410107,1736519436234,-500.0,9.796e-05,2]
[348410108,1736519436243,-507.10031861,9.796e-05,2]
[348410109,1736519436253,-508.14541794,9.796e-05,2]
[348410110,1736519436262,-2086.5,9.796e-05,2]
[348410111,1736519436273,-500.0,9.796e-05,2]
[348410112,1736519436283,-500.0,9.796e-05,2]
[348410113,1736519436297,-625.32,9.796e-05,2]
[348410114,1736519436307,-500.0,9.796e-05,2]
[348410115,1736519436316,-500.0,9.796e-05,2]
[348410116,1736519436325,-500.0,9.796e-05,2]
[348410117,1736519436334,-500.0,9.796e-05,2]
[348410118,1736519436343,-500.0,9.796e-05,2]
[348410119,1736519436352,-500.0,9.796e-05,2]
[348410120,1736519436361,-500.0,9.796e-05,2]
[348410121,1736519436370,-500.0,9.796e-05,2]
[348410122,1736519436379,-354.09213963,9.796e-05,2]
[348410123,1736519436389,-500.0,9.796e-05,2]
[348410124,1736519436398,-500.0,9.796e-05,2]
[348410125,1736519436407,-311.5,9.796e-05,2]
[348410126,1736519436416,-500.0,9.796e-05,2]
[348410127,1736519436426,-504.5290319,9.796e-05,2]
[348410128,1736519436435,-508.91260871,9.796e-05,2]
[348410129,1736519436445,-500.0,9.796e-05,2]
[348410130,1736519436454,-500.0,9.796e-05,2]
[348410131,1736519436464,-500.0,9.796e-05,2]
[348410132,1736519436474,-500.0,9.796e-05,2]
[348410133,1736519436484,-500.0,9.796e-05,2]
[348410134,1736519436494,-509.16131839,9.796e-05,2]
[348410135,1736519436504,-500.0,9.796e-05,2]
[348410136,1736519436514,-500.0,9.796e-05,2]
[348410137,1736519436524,-500.0,9.796e-05,2]
[348410138,1736519436534,-500.0,9.796e-05,2]
[348410139,1736519436550,-968.976524,9.796e-05,2]
[348410140,1736519436560,-500.0,9.796e-05,2]
[348410141,1736519436569,-500.0,9.796e-05,2]
[348410142,1736519436578,-500.0,9.796e-05,2]
[348410143,1736519436587,-500.0,9.796e-05,2]
[348410144,1736519436597,-500.0,9.796e-05,2]
[348410145,1736519436606,-500.0,9.796e-05,2]
[348410146,1736519436615,-500.0,9.796e-05,2]
[348410147,1736519436625,-799.29,9.796e-05,2]
[348410148,1736519436634,-623.30349524,9.796e-05,2]
[348410149,1736519436644,-500.0,9.796e-05,2]
[348410150,1736519436653,-500.0,9.796e-05,2]
[348410151,1736519436662,-500.0,9.796e-05,2]
[348410152,1736519436671,-500.0,9.796e-05,2]
[348410153,1736519436681,-500.0,9.796e-05,2]
[348410154,1736519436693,-500.0,9.796e-05,2]
[348410155,1736519436702,-994.98,9.796e-05,2]
[348410156,1736519436712,-502.47791767,9.796e-05,2]
[348410157,1736519436722,-500.0,9.796e-05,2]
[348410158,1736519436731,-500.0,9.796e-05,2]
[348410159,1736519436741,-500.0,9.796e-05,2]
[348410160,1736519436751,-223.54347374,9.796e-05,2]
[348410161,1736519436761,-500.0,9.796e-05,2]
[348410162,1736519436770,-500.0,9.796e-05,2]
[348410163,1736519436779,-788.55,9.796e-05,2]
[348410164,1736519436789,-500.0,9.796e-05,2]
[348410165,1736519436803,-500.0,9.796e-05,2]
[348410166,1736519436813,-500.0,9.796e-05,2]
[348410167,1736519436822,-522.87747856,9.796e-05,2]
[348410168,1736519436831,-638.17365526,9.796e-05,2]
[348410169,1736519436840,-500.0,9.796e-05,2]
[348410170,1736519436850,-500.0,9.796e-05,2]
[348410171,1736519436859,-500.0,9.796e-05,2]
[348410172,1736519436868,-500.0,9.796e-05,2]
[348410173,1736519436878,-821.27,9.796e-05,2]
[348410174,1736519436887,-500.0,9.796e-05,2]
[348410175,1736519436897,-500.0,9.796e-05,2]
[348410176,1736519436906,-500.0,9.796e-05,2]
[348410177,1736519436915,-500.0,9.796e-05,2]
[348410178,1736519436924,-500.0,9.796e-05,2]
[348410179,1736519436934,-500.0,9.796e-05,2]
[348410180,1736519436943,-500.0,9.796e-05,2]
[348410181,1736519436952,-500.0,9.796e-05,2]
[348410182,1736519436961,-500.0,9.796e-05,2]
[348410183,1736519436971,-500.0,9.796e-05,2]
[348410184,1736519436980,-500.0,9.796e-05,2]
[348410185,1736519436989,-500.0,9.796e-05,2]
[348410186,1736519436999,-500.0,9.796e-05,2]
[348410187,1736519437008,-500.0,9.796e-05,2]
[348410188,1736519437017,-500.0,9.796e-05,2]
[348410189,1736519437027,-500.0,9.796e-05,2]
[348410190,1736519437036,-500.0,9.796e-05,2]
[348410191,1736519437051,-500.0,9.796e-05,2]
[348410192,1736519437060,-500.0,9.796e-05,2]
[348410193,1736519437070,-500.0,9.796e-05,2]
[348410194,1736519437080,-500.0,9.796e-05,2]
[348410195,1736519437090,-500.0,9.796e-05,2]
[348410196,1736519437101,-500.0,9.796e-05,2]
[348410197,1736519437115,-500.0,9.796e-05,2]
[348410198,1736519437124,-500.0,9.796e-05,2]
[348410199,1736519437134,-500.0,9.796e-05,2]
[348410200,1736519437145,-500.0,9.796e-05,2]
[348410201,1736519437154,-500.0,9.796e-05,2]
[348410202,1736519437163,-500.0,9.796e-05,2]
[348410203,1736519437177,-3705.31,9.796e-05,2]
[348410204,1736519437193,-1504.66,9.796e-05,2]
[348410205,1736519437203,-500.0,9.796e-05,2]
[348410206,1736519437212,-500.5197249,9.796e-05,2]
[348410207,1736519437221,-367.05292561,9.796e-05,2]
[348410208,1736519437231,-500.0,9.796e-05,2]
[348410209,1736519437240,-500.0,9.796e-05,2]
[348410210,1736519437250,-500.0,9.796e-05,2]
[348410211,1736519437259,-702.8,9.796e-05,2]
[348410212,1736519437268,-500.0,9.796e-05,2]
[348410213,1736519437277,-500.0,9.796e-05,2]
[348410214,1736519437287,-500.0,9.796e-05,2]
[348410215,1736519437301,-809.31,9.796e-05,2]
[348410216,1736519437311,-500.0,9.796e-05,2]
[348410217,1736519437320,-500.0,9.796e-05,2]
[348410218,1736519437330,-500.0,9.796e-05,2]
[348410219,1736519437340,-500.0,9.796e-05,2]
[348410220,1736519437349,-500.0,9.796e-05,2]
[348410221,1736519437359,-500.0,9.796e-05,2]
[348410222,1736519437368,-500.0,9.796e-05,2]
[348410223,1736519437378,-500.0,9.796e-05,2]
[348410224,1736519437388,-500.0,9.796e-05,2]
[348410225,1736519437397,-500.0,9.796e-05,2]
[348410226,1736519437406,-500.0,9.796e-05,2]
[348410227,1736519437416,-199.46862163,9.796e-05,2]
[348410228,1736519437425,-500.0,9.796e-05,2]
[348410229,1736519437434,-511.27,9.796e-05,2]
[348410230,1736519437443,-500.0,9.796e-05,2]
[348410231,1736519437452,-500.0,9.796e-05,2]
[348410232,1736519437462,-500.0,9.796e-05,2]
[348410233,1736519437471,-500.0,9.796e-05,2]
[348410234,1736519437480,-500.0,9.796e-05,2]
[348410235,1736519437491,-500.0,9.796e-05,2]
[348410236,1736519437500,-500.0,9.796e-05,2]
[348410237,1736519437509,-500.0,9.796e-05,2]
[348410238,1736519437518,-500.0,9.796e-05,2]
[348410239,1736519437529,-500.0,9.796e-05,2]
[348410240,1736519437538,-1222.94,9.796e-05,2]
[348410241,1736519437551,-500.0,9.796e-05,2]
[348410242,1736519437560,-500.0,9.796e-05,2]
[348410243,1736519437569,-500.0,9.796e-05,2]
[348410244,1736519437579,-1131.34,9.796e-05,2]
[348410245,1736519437588,-500.0,9.796e-05,2]
[348410246,1736519437597,-500.0,9.796e-05,2]
[348410247,1736519437607,-500.0,9.796e-05,2]
[348410248,1736519437617,-500.0,9.796e-05,2]
[348410249,1736519437626,-500.0,9.796e-05,2]
[348410250,1736519437636,-247.54489911,9.796e-05,2]
[348410251,1736519437645,-500.0,9.796e-05,2]
[348410252,1736519437654,-502.4254496,9.796e-05,2]
[348410253,1736519437663,-500.0,9.796e-05,2]
[348410254,1736519437672,-500.65795346,9.796e-05,2]
[348410255,1736519437681,-634.1,9.796e-05,2]
[348410256,1736519437691,-500.0,9.796e-05,2]
[348410257,1736519437701,-893.59,9.796e-05,2]
[348410258,1736519437710,-500.0,9.796e-05,2]
[348410259,1736519437720,-538.0,9.796e-05,2]
[348410260,1736519437729,-500.0,9.796e-05,2]
[348410261,1736519437738,-500.0,9.796e-05,2]
[348410262,1736519437747,-500.0,9.796e-05,2]
[348410263,1736519437756,-545.41081774,9.796e-05,2]
[348410264,1736519437765,-500.0,9.796e-05,2]
[348410265,1736519437775,-500.0,9.796e-05,2]
[348410266,1736519437784,-958.49,9.796e-05,2]
[348410267,1736519437797,-500.0,9.796e-05,2]
[348410268,1736519437806,-500.0,9.796e-05,2]
[348410269,1736519437815,-500.0,9.796e-05,2]
[348410270,1736519437824,-507.22222886,9.796e-05,2]
[348410271,1736519437834,-499.70496891,9.796e-05,2]
[348410272,1736519437843,-3406.09,9.796e-05,2]
[348410273,1736519437853,-644.150764,9.796e-05,2]
[348410274,1736519437863,-500.0,9.796e-05,2]
[348410275,1736519437873,-501.67454617,9.796e-05,2]
[348410276,1736519437882,-500.0,9.796e-05,2]
[348410277,1736519437892,-500.0,9.796e-05,2]
[348410278,1736519437901,-500.0,9.796e-05,2]
[348410279,1736519437911,-179.0482255,9.796e-05,2]
[348410280,1736519437920,-500.0,9.796e-05,2]
[348410281,1736519437930,-500.0,9.796e-05,2]
[348410282,1736519437940,-500.0,9.796e-05,2]
[348410283,1736519437949,-208.08002693,9.796e-05,2]
[348410284,1736519437959,-500.0,9.796e-05,2]
[348410285,1736519437969,-217.80122709,9.796e-05,2]
[348410286,1736519437980,-500.91611661,9.796e-05,2]
[348410287,1736519437990,-500.0,9.796e-05,2]
[348410288,1736519438002,-500.0,9.796e-05,2]
[348410289,1736519438012,-500.0,9.796e-05,2]
[348410290,1736519438022,-962.29,9.796e-05,2]
[348410291,1736519438031,-500.0,9.796e-05,2]
[348410292,1736519438040,-500.0,9.796e-05,2]
[348410293,1736519438052,-500.0,9.796e-05,2]
[348410294,1736519438062,-543.57,9.796e-05,2]
[348410295,1736519438072,-500.0,9.796e-05,2]
[348410296,1736519438081,-500.0,9.796e-05,2]
[348410297,1736519438091,-500.0,9.796e-05,2]
[348410298,1736519438103,-1310.43,9.796e-05,2]
[348410299,1736519438114,-500.0,9.796e-05,7]
[348410300,1736519438124,-500.0,9.796e-05,2]
[348410301,1736519438133,-500.0,9.796e-05,2]
[348410302,1736519438143,-1163.25,9.796e-05,2]
[348410303,1736519438153,-500.0,9.796e-05,2]
[348410304,1736519438162,-500.0,9.796e-05,2]
[348410305,1736519438171,-500.0,9.796e-05,2]
[348410306,1736519438183,-1629.86,9.796e-05,2]
[348410307,1736519438192,-500.0,9.796e-05,2]
[348410308,1736519438202,-507.61482305,9.796e-05,2]
[348410309,1736519438213,-233.89,9.796e-05,2]
[348410310,1736519438222,-1838.97,9.796e-05,2]
[348410311,1736519438232,-579.59373616,9.796e-05,2]
[348410312,1736519438241,-501.5934097,9.796e-05,2]
[348410313,1736519438251,-631.11,9.796e-05,2]
[348410314,1736519438260,-502.66518148,9.796e-05,2]
[348410315,1736519438270,-500.0,9.796e-05,2]
[348410316,1736519438279,-500.0,9.796e-05,2]
[348410317,1736519438289,-500.0,9.796e-05,2]
[348410318,1736519438302,-500.0,9.796e-05,2]
[348410319,1736519438311,-500.0,9.796e-05,2]
[348410320,1736519438322,-1262.45,9.796e-05,2]
[348410321,1736519438333,-500.0,9.796e-05,2]
[348410322,1736519438344,-500.0,9.796e-05,2]
[348410323,1736519438353,-500.0,9.796e-05,2]
[348410324,1736519438363,-510.3525632,9.796e-05,2]
[348410325,1736519438374,-511.78956847,9.796e-05,2]
[348410326,1736519438384,-500.0,9.796e-05,2]
[348410327,1736519438393,-353.97745826,9.796e-05,2]
[348410328,1736519438402,-500.0,9.798e-05,2]
[348410329,1736519438411,-500.0,9.798e-05,2]
[348410330,1736519438421,-500.59159619,9.798e-05,2]
[348410331,1736519438430,-501.13481123,9.798e-05,2]
[348410332,1736519438440,-503.74049584,9.798e-05,2]
[348410333,1736519438450,-500.0,9.798e-05,2]
[348410334,1736519438459,-500.0,9.798e-05,2]
[348410335,1736519438469,-614.32,9.798e-05,2]
[348410336,1736519438479,-165.47077202,9.798e-05,2]
[348410337,1736519438488,-500.0,9.798e-05,2]
[348410338,1736519438498,-500.0,9.798e-05,2]
[348410339,1736519438509,-500.0,9.798e-05,2]
[348410340,1736519438519,-500.0,9.798e-05,2]
[348410341,1736519438530,-500.0,9.798e-05,2]
[348410342,1736519438540,-500.0,9.798e-05,2]
[348410343,1736519438554,-500.0,9.798e-05,2]
[348410344,1736519438563,-500.0,9.798e-05,2]
[348410345,1736519438574,-512.12623081,9.798e-05,2]
[348410346,1736519438583,-402.42553196,9.798e-05,2]
[348410347,1736519438592,-500.0,9.798e-05,2]
[348410348,1736519438602,-500.0,9.798e-05,2]
[348410349,1736519438611,-500.0,9.798e-05,2]
[348410350,1736519438621,-500.0,9.798e-05,2]
[348410351,1736519438630,-500.0,9.798e-05,2]
[348410352,1736519438639,-500.0,9.798e-05,2]
[348410353,1736519438648,-500.0,9.798e-05,2]
[348410354,1736519438658,-500.0,9.798e-05,2]
[348410355,1736519438667,-500.0,9.798e-05,2]
[348410356,1736519438676,-500.0,9.798e-05,2]
[348410357,1736519438686,-500.0,9.798e-05,2]
[348410358,1736519438696,-500.0,9.798e-05,2]
[348410359,1736519438705,-500.0,9.798e-05,2]
[348410360,1736519438714,-500.0,9.798e-05,2]
[348410361,1736519438723,-500.0,9.798e-05,2]
[348410362,1736519438733,-503.75490631,9.798e-05,2]
[348410363,1736519438742,-500.0,9.798e-05,2]
[348410364,1736519438751,-281.12342451,9.798e-05,2]
[348410365,1736519438760,-500.0,9.798e-05,2]
[348410366,1736519438769,-1653.37013331,9.798e-05,2]
[348410367,1736519438778,-500.0,9.798e-05,2]
[348410368,1736519438788,-500.0,9.798e-05,2]
[348410369,1736519438801,-500.0,9.798e-05,2]
[348410370,1736519438810,-500.0,9.798e-05,2]
[348410371,1736519438820,-500.0,9.798e-05,2]
[348410372,1736519438830,-500.0,9.798e-05,2]
[348410373,1736519438840,-500.0,9.798e-05,2]
[348410374,1736519438849,-500.0,9.798e-05,2]
[348410375,1736519438859,-505.22785167,9.798e-05,2]
[348410376,1736519438868,-500.0,9.798e-05,2]
[348410377,1736519438877,-503.42399889,9.798e-05,2]
[348410378,1736519438887,-503.45485883,9.798e-05,2]
[348410379,1736519438896,-500.0,9.798e-05,2]
[348410380,1736519438905,-501.714838,9.798e-05,2]
[348410381,1736519438914,-500.0,9.798e-05,2]
[348410382,1736519438924,-500.0,9.798e-05,2]
[348410383,1736519438933,-500.0,9.798e-05,2]
[348410384,1736519438942,-500.0,9.798e-05,2]
[348410385,1736519438952,-500.0,9.798e-05,2]
[348410386,1736519438961,-502.63980453,9.798e-05,2]
[348410387,1736519438971,-500.0,9.798e-05,2]
[348410388,1736519438980,-559.07,9.798e-05,2]
[348410389,1736519438989,-500.0,9.798e-05,2]
[348410390,1736519438998,-500.0,9.798e-05,2]
[348410391,1736519439007,-934.27,9.798e-05,2]
[348410392,1736519439017,-500.0,9.798e-05,2]
[348410393,1736519439026,-553.0,9.798e-05,2]
[348410394,1736519439035,-500.0,9.798e-05,2]
[348410395,1736519439046,-500.0,9.798e-05,2]
[348410396,1736519439055,-500.0,9.798e-05,2]
[348410397,1736519439065,-541.7,9.798e-05,2]
[348410398,1736519439074,-657.08,9.798e-05,2]
[348410399,1736519439083,-957.7,9.798e-05,2]
[348410400,1736519439094,-500.0,9.798e-05,2]
[348410401,1736519439105,-988.51,9.798e-05,2]
[348410402,1736519439116,-716.89,9.798e-05,2]
[348410403,1736519439125,-602.37,9.798e-05,2]
[348410404,1736519439135,-958.02,9.798e-05,2]
[348410405,1736519439147,-695.4,9.798e-05,2]
[348410406,1736519439158,-500.0,9.798e-05,2]
[348410407,1736519439168,-557.8,9.798e-05,2]
[348410408,1736519439178,-500.0,9.798e-05,2]
[348410409,1736519439187,-999.65,9.798e-05,2]
[348410410,1736519439196,-753.59,9.798e-05,2]
[348410411,1736519439206,-937.21,9.798e-05,2]
[348410412,1736519439215,-1173.25,9.798e-05,2]
[348410413,1736519439224,-500.0,9.798e-05,2]
[348410414,1736519439234,-1094.52,9.798e-05,2]
[348410415,1736519439245,-500.0,9.798e-05,2]
[348410416,1736519439255,-674.8,9.798e-05,2]
[348410417,1736519439265,-500.0,9.798e-05,2]
[348410418,1736519439276,-500.0,9.798e-05,2]
[348410419,1736519439285,-853.03,9.798e-05,2]
[348410420,1736519439296,-1664.35,9.798e-05,2]
[348410421,1736519439306,-500.0,9.798e-05,2]
[348410422,1736519439315,-500.0,9.798e-05,2]
[348410423,1736519439325,-8169.68,9.798e-05,2]
[348410424,1736519439335,-500.0,9.798e-05,2]
[348410425,1736519439344,-1531.9,9.798e-05,2]
[348410426,1736519439354,-2268.26,9.798e-05,2]
[348410427,1736519439364,-1664.33,9.798e-05,2]
[348410428,1736519439375,-1442.2,9.798e-05,2]
[348410429,1736519439392,-3158.61,9.798e-05,2]
[348410430,1736519439406,-1892.81,9.798e-05,2]
[348410431,1736519439417,-1778.33,9.798e-05,2]
[348410432,1736519439428,-6135.7,9.798e-05,2]
[348410433,1736519439439,-500.0,9.798e-05,2]
[348410434,1736519439448,-4391.91,9.798e-05,2]
[348410435,1736519439458,-1266.22,9.798e-05,2]
[348410436,1736519439469,-2225.19,9.798e-05,2]
[348410437,1736519439479,-500.0,9.798e-05,2]
[348410438,1736519439488,-2918.17,9.798e-05,2]
[348410439,1736519439499,-2962.66,9.798e-05,2]
[348410440,1736519439509,-1373.17,9.799e-05,2]
[348410441,1736519439520,-1075.08,9.799e-05,2]
[348410442,1736519439530,-1287.07,9.799e-05,2]
[348410443,1736519439542,-600.6,9.799e-05,2]
[348410444,1736519439555,-1218.68,9.799e-05,2]
[348410445,1736519439568,-805.05,9.799e-05,2]
[348410447,1736519439577,-865.37,9.799e-05,2]
[348410449,1736519439588,-965.34,9.799e-05,2]
[348410451,1736519439598,-1417.26,9.799e-05,2]
[348410453,1736519439609,-1664.42,9.799e-05,2]
[348410454,1736519439618,-1549.15,9.799e-05,2]
[348410456,1736519439629,-3190.78,9.799e-05,2]
[348410457,1736519439640,-6780.04,9.799e-05,2]
[348410459,1736519439653,-1158.8,9.799e-05,2]
[348410460,1736519439663,-923.08,9.799e-05,2]
[348410461,1736519439674,-500.0,9.799e-05,2]
[348410462,1736519439683,-866.62,9.799e-05,2]
[348410463,1736519439694,-1327.79,9.799e-05,2]
[348410464,1736519439704,-1224.61,9.799e-05,2]
[348410465,1736519439715,-1041.19,9.799e-05,2]
[348410466,1736519439724,-1199.34,9.799e-05,2]
[348410467,1736519439734,-11600.0,9.8e-05,3]
[348410468,1736519439743,-300.46,9.836e-05,2]
[348410469,1736519439753,-19154.2764136,9.85e-05,2]
[348410470,1736519439776,-33326.36553315,9.85e-05,2]
[348410557,1736519441202,-3882.55690743,9.85e-05,2]
[348410558,1736519441212,-186.56298102,9.853e-05,2]
[348410559,1736519441222,-267.5223,9.896e-05,2]
[348410560,1736519441231,-1000.0,9.9e-05,2]
[348410561,1736519441241,-2300.0,9.9e-05,3]
[348410562,1736519441252,-1000.0,9.9e-05,2]
[348410563,1736519441262,-881.79,9.909e-05,2]
[348410564,1736519441272,-2327.56693716,9.921e-05,2]
[348410565,1736519441282,-9037.68140939,9.973e-05,2]
[348410566,1736519441378,-18890.24085992,9.973e-05,2]
[348410567,1736519441389,-805.07773069,9.973e-05,2]
[348410568,1736519441398,-138.26466931,9.973e-05,2]
[348410569,1736519441704,-369.22192626,9.973e-05,2]
[348410570,1736519441715,-955.85329041,9.973e-05,2]
[348410571,1736519441740,-415.1,9.973e-05,2]
[348410572,1736519441755,-2734.56011402,9.973e-05,2]
[348410573,1736519441769,-161.66051877,9.973e-05,2]
[348410574,1736519441784,-500.44771259,9.973e-05,2]
[348410575,1736519441799,-299.6057695,9.973e-05,2]
[348410576,1736519441811,-151.83863526,9.973e-05,2]
[348410577,1736519441823,-10337.18790986,9.988e-05,2]
[348410578,1736519441841,-11850.91204221,9.988e-05,2]
[348410607,1736519443039,-1000.0,9.109e-05,2]
[348410608,1736519443054,-500.0,9.973e-05,2]
[348410609,1736519443065,-10376.39998308,9.988e-05,2]
[348410610,1736519443142,-1023.786069,9.988e-05,2]
[348410612,1736519443340,-300.0,9.988e-05,2]
[348410613,1736519443352,-18996.59194978,9.988e-05,2]
[348410614,1736519443361,-4286.266,9.992e-05,2]
[348410615,1736519443371,-177.571,9.992e-05,2]
[348410616,1736519443380,-3330.7602835,9.992e-05,2]
[348410617,1736519443390,-1392.3907136,9.992e-05,2]
[348410618,1736519443399,-2776.0107432,9.992e-05,2]
[348410619,1736519443408,-8169.68,9.996e-05,2]
[348410620,1736519443417,-1206.48878289,9.999e-05,3]
[348410621,1736519443427,-1206.4887829,9.999e-05,3]
[348410622,1736519443436,-136059.68658505,9.999e-05,2]
[348410623,1736519443448,-5643.5,9.999e-05,2]
[348410624,1736519443460,-10940.81034,9.999e-05,2]
[348410625,1736519443860,-778562.6203443,9.999e-05,2]
[348410626,1736519443913,-7434.8803871,9.999e-05,2]
[348410627,1736519445714,-500.0,9.775e-05,2]
[348410628,1736519445725,-500.0,9.775e-05,2]
[348410629,1736519445734,-364.749998,9.776e-05,2]
[348410630,1736519445746,-10.65161666,9.776e-05,2]
[348410631,1736519445756,-500.0,9.777e-05,2]
[348410632,1736519445766,-500.0,9.778e-05,2]
[348410633,1736519445775,-500.0,9.796e-05,2]
[348410634,1736519445786,-4891.34838333,9.999e-05,2]
[348410635,1736519445801,-47325.14839248,9.999e-05,2]
[348410636,1736519445812,-673.1775092,9.999e-05,2]
[348410637,1736519445823,-16021.28016304,9.999e-05,2]
[348410638,1736519445834,-264.3754688,9.999e-05,2]
[348410639,1736519445846,-5132.2190332,9.999e-05,2]
[348410640,1736519445857,-2112.7,9.999e-05,2]
[348410641,1736519445904,-47233.50827592,9.999e-05,2]
[348410642,1736519445915,-7052.89675949,9.999e-05,2]
[348410643,1736519445926,-16133.74647191,9.999e-05,2]
[348410644,1736519445985,-223574.09614913,9.999e-05,2]
[348410645,1736519445997,-3505.300549,9.999e-05,2]
[348410646,1736519446008,-1648.3540861,9.999e-05,2]
[348410647,1736519446019,-1957.704,9.999e-05,2]
[348410648,1736519446133,-657300.95608995,9.999e-05,2]
[348410649,1736519446143,-1059.85806145,9.999e-05,3]
[348410650,1736519446154,-500.0,9.999e-05,2]
[348410651,1736519446163,-8169.68,9.999e-05,2]
[348410652,1736519446172,-8169.68,9.999e-05,2]
[348410654,1736519446182,-8169.68,9.999e-05,2]
[348410656,1736519446191,-8169.68,9.999e-05,2]
[348410658,1736519446200,-8169.68,9.999e-05,2]
[348410660,1736519446209,-8169.68,9.999e-05,2]
[348410662,1736519446218,-8169.68,9.999e-05,2]
[348410663,1736519446227,-8169.68,9.999e-05,2]